[Event "January 2 Late 2024"]
[Site "https://www.chess.com"]
[Date "2024.01.02"]
[Round "4"]
[White "ArchibaldCerveza29"]
[Black "Banzea, Alexandru-Bogdan"]
[Result "0-1"]
[Board "92"]
[TimeControl "180+1"]
[BlackFideId "1232622"]
[WhiteElo "2416"]
[BlackElo "2668"]
[BlackTeam "ROU"]
[WhiteClock "0:00:04"]
[BlackClock "0:00:05"]

1. b3 {[%clk 0:02:52]}  d5 {[%clk 0:02:59]} 2. Bb2 {[%clk 0:02:53]}  c6 {[%clk 0:02:59]} 3. g3 {[%clk 0:02:54]}  Bf5 {[%clk 0:02:59]} 4. Bg2 {[%clk 0:02:55]}  e6 {[%clk 0:03:00]} 5. d3 {[%clk 0:02:55]}  Nf6 {[%clk 0:03:00]} 6. Nd2 {[%clk 0:02:56]}  h6 {[%clk 0:03:00]} 7. e3 {[%clk 0:02:57]}  a5 {[%clk 0:02:59]} 8. a3 {[%clk 0:02:56]}  Nbd7 {[%clk 0:02:58]} 9. Ne2 {[%clk 0:02:56]}  Bh7 {[%clk 0:02:57]} 10. h3 {[%clk 0:02:56]}  Bd6 {[%clk 0:02:46]} 11. O-O {[%clk 0:02:54]}  O-O {[%clk 0:02:46]} 12. f4 {[%clk 0:02:51]}  Re8 {[%clk 0:02:44]} 13. e4 {[%clk 0:02:48]}  e5 {[%clk 0:01:50]} 14. fxe5 {[%clk 0:02:28]}  Bxe5 {[%clk 0:01:35]} 15. d4 {[%clk 0:02:28]}  Bb8 {[%clk 0:00:57]} 16. e5 {[%clk 0:02:28]}  Nxe5 {[%clk 0:00:58]} 17. dxe5 {[%clk 0:02:28]}  Bxe5 {[%clk 0:00:59]} 18. Bxe5 {[%clk 0:02:24]}  Rxe5 {[%clk 0:01:00]} 19. Nf3 {[%clk 0:02:24]}  Re3 {[%clk 0:00:54]} 20. Qd2 {[%clk 0:02:12]}  Qb6 {[%clk 0:00:37]} 21. Kh1 {[%clk 0:02:12]}  Ne4 {[%clk 0:00:34]} 22. Qd4 {[%clk 0:01:44]}  Qxd4 {[%clk 0:00:17]} 23. Nexd4 {[%clk 0:01:21]}  Nxg3+ {[%clk 0:00:16]} 24. Kg1 {[%clk 0:01:22]}  Nxf1 {[%clk 0:00:17]} 25. Rxf1 {[%clk 0:01:18]}  Rae8 {[%clk 0:00:17]} 26. Kf2 {[%clk 0:01:15]}  Bxc2 {[%clk 0:00:15]} 27. Rc1 {[%clk 0:01:07]}  Bxb3 {[%clk 0:00:14]} 28. Rb1 {[%clk 0:01:07]}  a4 {[%clk 0:00:14]} 29. Nd2 {[%clk 0:01:01]}  Rd3 {[%clk 0:00:09]} 30. N2xb3 {[%clk 0:00:53]}  axb3 {[%clk 0:00:10]} 31. Nxb3 {[%clk 0:00:54]}  b6 {[%clk 0:00:09]} 32. Bf1 {[%clk 0:00:49]}  Rc3 {[%clk 0:00:05]} 33. Nd4 {[%clk 0:00:47]}  Ra8 {[%clk 0:00:04]} 34. Rxb6 {[%clk 0:00:46]}  Raxa3 {[%clk 0:00:04]} 35. Rxc6 {[%clk 0:00:37]}  Ra2+ {[%clk 0:00:02]} 36. Be2 {[%clk 0:00:35]}  Rxc6 {[%clk 0:00:03]} 37. Nxc6 {[%clk 0:00:36]}  g6 {[%clk 0:00:03]} 38. Ne7+ {[%clk 0:00:37]}  Kg7 {[%clk 0:00:03]} 39. Nxd5 {[%clk 0:00:37]}  Ra5 {[%clk 0:00:03]} 40. Ne3 {[%clk 0:00:37]}  f5 {[%clk 0:00:03]} 41. Kf3 {[%clk 0:00:36]}  Ra3 {[%clk 0:00:03]} 42. Kf2 {[%clk 0:00:29]}  Kf6 {[%clk 0:00:03]} 43. h4 {[%clk 0:00:27]}  g5 {[%clk 0:00:03]} 44. hxg5+ {[%clk 0:00:28]}  hxg5 {[%clk 0:00:04]} 45. Bf3 {[%clk 0:00:20]}  g4 {[%clk 0:00:03]} 46. Bxg4 {[%clk 0:00:20]}  fxg4 {[%clk 0:00:04]} 47. Nxg4+ {[%clk 0:00:21]}  Kg5 {[%clk 0:00:04]} 48. Ne3 {[%clk 0:00:22]}  Kf4 {[%clk 0:00:04]} 49. Nd5+ {[%clk 0:00:22]}  Ke4 {[%clk 0:00:04]} 50. Nf6+ {[%clk 0:00:20]}  Ke5 {[%clk 0:00:04]} 51. Ng4+ {[%clk 0:00:21]}  Kf4 {[%clk 0:00:04]} 52. Nf6 {[%clk 0:00:19]}  Ra2+ {[%clk 0:00:04]} 53. Ke1 {[%clk 0:00:20]}  Ra5 {[%clk 0:00:03]} 54. Kd2 {[%clk 0:00:18]}  Rc5 {[%clk 0:00:02]} 55. Kd3 {[%clk 0:00:18]}  Kf5 {[%clk 0:00:02]} 56. Kd4 {[%clk 0:00:17]}  Rc1 {[%clk 0:00:02]} 57. Nd5 {[%clk 0:00:17]}  Rd1+ {[%clk 0:00:02]} 58. Kc4 {[%clk 0:00:16]}  Rc1+ {[%clk 0:00:02]} 59. Nc3 {[%clk 0:00:16]}  Rh1 {[%clk 0:00:03]} 60. Kd3 {[%clk 0:00:16]}  Ke5 {[%clk 0:00:03]} 61. Ne2 {[%clk 0:00:14]}  Rh3+ {[%clk 0:00:04]} 62. Kc4 {[%clk 0:00:14]}  Ke4 {[%clk 0:00:04]} 63. Nc3+ {[%clk 0:00:14]}  Ke5 {[%clk 0:00:05]} 64. Nb5 {[%clk 0:00:14]}  Ke4 {[%clk 0:00:04]} 65. Nc3+ {[%clk 0:00:14]}  Ke5 {[%clk 0:00:05]} 66. Nb5 {[%clk 0:00:15]}  Rh8 {[%clk 0:00:04]} 67. Kc5 {[%clk 0:00:14]}  Rc8+ {[%clk 0:00:05]} 68. Kb6 {[%clk 0:00:13]}  Kd5 {[%clk 0:00:05]} 69. Nc7+ {[%clk 0:00:13]}  Kc4 {[%clk 0:00:05]} 70. Na6 {[%clk 0:00:11]}  Rh8 {[%clk 0:00:04]} 71. Nc7 {[%clk 0:00:10]}  Rh6+ {[%clk 0:00:05]} 72. Kb7 {[%clk 0:00:10]}  Kc5 {[%clk 0:00:06]} 73. Na6+ {[%clk 0:00:11]}  Kd6 {[%clk 0:00:05]} 74. Kb6 {[%clk 0:00:09]}  Rh1 {[%clk 0:00:05]} 75. Kb5 {[%clk 0:00:09]}  Rb1+ {[%clk 0:00:06]} 76. Nb4 {[%clk 0:00:10]}  Ke5 {[%clk 0:00:05]} 77. Kc4 {[%clk 0:00:10]}  Ke4 {[%clk 0:00:06]} 78. Kc3 {[%clk 0:00:09]}  Rh1 {[%clk 0:00:05]} 79. Kc4 {[%clk 0:00:09]}  Rh8 {[%clk 0:00:05]} 80. Kb3 {[%clk 0:00:09]}  Rc8 {[%clk 0:00:05]} 81. Nc2 {[%clk 0:00:09]}  Kd3 {[%clk 0:00:06]} 82. Nb4+ {[%clk 0:00:09]}  Kd2 {[%clk 0:00:06]} 83. Ka4 {[%clk 0:00:09]}  Kc3 {[%clk 0:00:06]} 84. Na2+ {[%clk 0:00:08]}  Kc4 {[%clk 0:00:06]} 85. Ka3 {[%clk 0:00:09]}  Ra8+ {[%clk 0:00:06]} 86. Kb2 {[%clk 0:00:09]}  Rh8 {[%clk 0:00:06]} 87. Ka3 {[%clk 0:00:09]}  Rh2 {[%clk 0:00:06]} 88. Nb4 {[%clk 0:00:07]}  Rh3+ {[%clk 0:00:06]} 89. Ka4 {[%clk 0:00:08]}  Rh1 {[%clk 0:00:04]} 90. Ka3 {[%clk 0:00:08]}  Rh8 {[%clk 0:00:05]} 91. Nc2 {[%clk 0:00:06]}  Kc3 {[%clk 0:00:04]} 92. Nb4 {[%clk 0:00:03]}  Ra8+ {[%clk 0:00:05]} 93. Na6 {[%clk 0:00:04]}  Rxa6# {[%clk 0:00:05]} 0-1

[Event "January 2 Late 2024"]
[Site "https://www.chess.com"]
[Date "2024.01.02"]
[Round "4"]
[White "Bueno, Alfeu Junior Varela"]
[Black "Olsen, Filip Boe"]
[Result "0-1"]
[Board "96"]
[TimeControl "180+1"]
[WhiteFideId "2108879"]
[BlackFideId "1440640"]
[WhiteElo "2382"]
[BlackElo "2650"]
[WhiteTeam "BRA"]
[BlackTeam "DEN"]
[WhiteClock "0:00:00"]
[BlackClock "0:00:48"]

1. e4 {[%clk 0:03:00]}  c6 {[%clk 0:02:57]} 2. d4 {[%clk 0:02:59]}  d5 {[%clk 0:02:56]} 3. f3 {[%clk 0:03:00]}  e6 {[%clk 0:02:56]} 4. Nc3 {[%clk 0:02:59]}  Bb4 {[%clk 0:02:56]} 5. Bf4 {[%clk 0:02:59]}  Nd7 {[%clk 0:02:48]} 6. Ne2 {[%clk 0:02:45]}  Ne7 {[%clk 0:02:48]} 7. a3 {[%clk 0:02:40]}  Ba5 {[%clk 0:02:47]} 8. Qd3 {[%clk 0:02:36]}  b5 {[%clk 0:02:42]} 9. Bd6 {[%clk 0:02:31]}  Bc7 {[%clk 0:02:40]} 10. Bxc7 {[%clk 0:02:24]}  Qxc7 {[%clk 0:02:38]} 11. g3 {[%clk 0:02:10]}  a6 {[%clk 0:02:32]} 12. Bg2 {[%clk 0:02:03]}  Bb7 {[%clk 0:02:31]} 13. f4 {[%clk 0:01:49]}  dxe4 {[%clk 0:02:26]} 14. Nxe4 {[%clk 0:01:48]}  c5 {[%clk 0:02:26]} 15. dxc5 {[%clk 0:01:31]}  Nxc5 {[%clk 0:02:26]} 16. Qd6 {[%clk 0:01:30]}  Rc8 {[%clk 0:01:48]} 17. Qxc7 {[%clk 0:01:27]}  Rxc7 {[%clk 0:01:47]} 18. Nd6+ {[%clk 0:01:27]}  Kf8 {[%clk 0:01:34]} 19. Nxb7 {[%clk 0:01:21]}  Nxb7 {[%clk 0:01:35]} 20. O-O-O {[%clk 0:01:20]}  g6 {[%clk 0:01:16]} 21. Rd3 {[%clk 0:00:59]}  Kg7 {[%clk 0:01:13]} 22. Rhd1 {[%clk 0:00:58]}  Nc5 {[%clk 0:01:07]} 23. Rc3 {[%clk 0:00:53]}  Rhc8 {[%clk 0:01:07]} 24. Nd4 {[%clk 0:00:32]}  Na4 {[%clk 0:00:59]} 25. Rxc7 {[%clk 0:00:31]}  Rxc7 {[%clk 0:00:59]} 26. Nb3 {[%clk 0:00:27]}  Nf5 {[%clk 0:00:57]} 27. Be4 {[%clk 0:00:23]}  Ne3 {[%clk 0:00:52]} 28. Re1 {[%clk 0:00:21]}  Nc4 {[%clk 0:00:52]} 29. Rd1 {[%clk 0:00:05]}  Naxb2 {[%clk 0:00:50]} 30. Rd8 {[%clk 0:00:04]}  Na4 {[%clk 0:00:50]} 31. Bd3 {[%clk 0:00:03]}  Nxa3 {[%clk 0:00:49]} 32. Ra8 {[%clk 0:00:00]}  Rc6 {[%clk 0:00:48]} 0-1

[Event "January 2 Late 2024"]
[Site "https://www.chess.com"]
[Date "2024.01.02"]
[Round "4"]
[White "Arias Igual, Alejandro"]
[Black "Ozates, Tuna"]
[Result "0-1"]
[Board "98"]
[TimeControl "180+1"]
[WhiteFideId "2254905"]
[BlackFideId "6354521"]
[WhiteElo "2371"]
[BlackElo "2647"]
[WhiteTeam "ESP"]
[BlackTeam "TUR"]
[WhiteClock "0:00:00"]
[BlackClock "0:00:06"]

1. e4 {[%clk 0:03:00]}  c5 {[%clk 0:02:58]} 2. Nf3 {[%clk 0:03:00]}  Nc6 {[%clk 0:02:59]} 3. Bb5 {[%clk 0:02:59]}  g6 {[%clk 0:02:59]} 4. Bxc6 {[%clk 0:02:59]}  bxc6 {[%clk 0:03:00]} 5. O-O {[%clk 0:02:57]}  Bg7 {[%clk 0:03:00]} 6. c3 {[%clk 0:02:56]}  Nh6 {[%clk 0:02:59]} 7. h3 {[%clk 0:02:51]}  O-O {[%clk 0:02:58]} 8. d4 {[%clk 0:02:51]}  cxd4 {[%clk 0:02:47]} 9. cxd4 {[%clk 0:02:52]}  f5 {[%clk 0:02:44]} 10. e5 {[%clk 0:02:47]}  Nf7 {[%clk 0:02:44]} 11. Nc3 {[%clk 0:02:29]}  e6 {[%clk 0:02:44]} 12. Be3 {[%clk 0:02:21]}  g5 {[%clk 0:02:43]} 13. Ne1 {[%clk 0:02:11]}  Rb8 {[%clk 0:02:30]} 14. Nd3 {[%clk 0:02:03]}  Ba6 {[%clk 0:02:28]} 15. b3 {[%clk 0:01:50]}  Qa5 {[%clk 0:02:23]} 16. Rc1 {[%clk 0:01:43]}  f4 {[%clk 0:02:21]} 17. Ne4 {[%clk 0:01:08]}  fxe3 {[%clk 0:01:56]} 18. fxe3 {[%clk 0:01:09]}  Bxd3 {[%clk 0:01:51]} 19. Qxd3 {[%clk 0:01:08]}  Qxa2 {[%clk 0:01:52]} 20. Nc5 {[%clk 0:00:51]}  Nh6 {[%clk 0:01:24]} 21. Rxf8+ {[%clk 0:00:30]}  Rxf8 {[%clk 0:01:22]} 22. Nxd7 {[%clk 0:00:26]}  Qf2+ {[%clk 0:00:32]} 23. Kh1 {[%clk 0:00:25]}  Nf5 {[%clk 0:00:23]} 24. Nc5 {[%clk 0:00:12]}  Nxe3 {[%clk 0:00:20]} 25. Rg1 {[%clk 0:00:07]}  Nd5 {[%clk 0:00:14]} 26. Nxe6 {[%clk 0:00:04]}  Re8 {[%clk 0:00:07]} 27. Nxg5 {[%clk 0:00:03]}  h6 {[%clk 0:00:06]} 28. Qh7+ {[%clk 0:00:03]}  Kf8 {[%clk 0:00:06]} 29. Nf3 {[%clk 0:00:01]}  Ne3 {[%clk 0:00:02]} 30. Qf5+ {[%clk 0:00:02]}  Nxf5 {[%clk 0:00:02]} 31. Ng5 {[%clk 0:00:02]}  Ng3+ {[%clk 0:00:03]} 32. Kh2 {[%clk 0:00:02]}  hxg5 {[%clk 0:00:03]} 33. Rf1 {[%clk 0:00:01]}  Nxf1+ {[%clk 0:00:04]} 34. Kh1 {[%clk 0:00:01]}  Ng3+ {[%clk 0:00:04]} 35. Kh2 {[%clk 0:00:01]}  Rxe5 {[%clk 0:00:04]} 36. h4 {[%clk 0:00:01]}  Ne4 {[%clk 0:00:04]} 37. Kh3 {[%clk 0:00:01]}  Rf5 {[%clk 0:00:05]} 38. Kg4 {[%clk 0:00:01]}  Qg3+ {[%clk 0:00:05]} 39. Kh5 {[%clk 0:00:00]}  Qf4 {[%clk 0:00:06]} 0-1

[Event "January 2 Late 2024"]
[Site "https://www.chess.com"]
[Date "2024.01.02"]
[Round "4"]
[White "Keleberda, Tymur"]
[Black "CRObliterator"]
[Result "1-0"]
[Board "99"]
[TimeControl "180+1"]
[WhiteFideId "14174294"]
[WhiteElo "2645"]
[BlackElo "2363"]
[WhiteTeam "CAN"]
[WhiteClock "0:01:49"]
[BlackClock "0:01:01"]

1. c4 {[%clk 0:03:00]}  c5 {[%clk 0:02:59]} 2. g3 {[%clk 0:03:00]}  Nf6 {[%clk 0:03:00]} 3. Bg2 {[%clk 0:03:00]}  g6 {[%clk 0:03:00]} 4. Nf3 {[%clk 0:02:58]}  Bg7 {[%clk 0:03:01]} 5. O-O {[%clk 0:02:49]}  O-O {[%clk 0:03:01]} 6. Nc3 {[%clk 0:02:49]}  Nc6 {[%clk 0:03:01]} 7. e3 {[%clk 0:02:49]}  b6 {[%clk 0:02:58]} 8. d4 {[%clk 0:02:49]}  cxd4 {[%clk 0:02:58]} 9. exd4 {[%clk 0:02:48]}  d5 {[%clk 0:02:58]} 10. cxd5 {[%clk 0:02:48]}  Nxd5 {[%clk 0:02:58]} 11. Nxd5 {[%clk 0:02:48]}  Qxd5 {[%clk 0:02:55]} 12. Ne5 {[%clk 0:02:48]}  Qd6 {[%clk 0:02:31]} 13. Nxc6 {[%clk 0:02:44]}  Bb7 {[%clk 0:02:28]} 14. Bf4 {[%clk 0:02:38]}  Qd7 {[%clk 0:02:16]} 15. d5 {[%clk 0:02:31]}  Bxb2 {[%clk 0:02:09]} 16. Rb1 {[%clk 0:02:31]}  Bf6 {[%clk 0:02:08]} 17. Re1 {[%clk 0:02:27]}  Rfe8 {[%clk 0:02:07]} 18. Qf3 {[%clk 0:02:18]}  Ba6 {[%clk 0:01:50]} 19. Be5 {[%clk 0:02:13]}  Kg7 {[%clk 0:01:42]} 20. d6 {[%clk 0:01:53]}  Bxe5 {[%clk 0:01:17]} 21. Nxe5 {[%clk 0:01:53]}  Qe6 {[%clk 0:01:17]} 22. d7 {[%clk 0:01:48]}  Red8 {[%clk 0:01:15]} 23. Qxa8 {[%clk 0:01:48]}  Rxa8 {[%clk 0:01:01]} 24. Bxa8 {[%clk 0:01:49]} 1-0

[Event "January 2 Late 2024"]
[Site "https://www.chess.com"]
[Date "2024.01.02"]
[Round "4"]
[White "Espinoza Villanueva, Rodrigo"]
[Black "Shohat, Yotam"]
[Result "1/2-1/2"]
[Board "101"]
[TimeControl "180+1"]
[WhiteFideId "5140188"]
[BlackFideId "2813955"]
[WhiteElo "2642"]
[BlackElo "2352"]
[WhiteTeam "MEX"]
[BlackTeam "ISR"]
[WhiteClock "0:00:41"]
[BlackClock "0:00:04"]

1. Nf3 {[%clk 0:03:00]}  Nf6 {[%clk 0:02:54]} 2. g3 {[%clk 0:02:53]}  d5 {[%clk 0:02:53]} 3. Bg2 {[%clk 0:02:54]}  e6 {[%clk 0:02:52]} 4. O-O {[%clk 0:02:55]}  Be7 {[%clk 0:02:52]} 5. d3 {[%clk 0:02:55]}  O-O {[%clk 0:02:50]} 6. Nbd2 {[%clk 0:02:56]}  c5 {[%clk 0:02:50]} 7. e4 {[%clk 0:02:56]}  Nc6 {[%clk 0:02:51]} 8. Re1 {[%clk 0:02:54]}  b6 {[%clk 0:02:40]} 9. e5 {[%clk 0:02:52]}  Nd7 {[%clk 0:02:40]} 10. Nf1 {[%clk 0:02:52]}  Qc7 {[%clk 0:02:39]} 11. Bf4 {[%clk 0:02:50]}  Bb7 {[%clk 0:02:39]} 12. h4 {[%clk 0:02:49]}  Rfc8 {[%clk 0:02:37]} 13. c3 {[%clk 0:02:47]}  b5 {[%clk 0:01:51]} 14. Ne3 {[%clk 0:02:47]}  Qd8 {[%clk 0:01:49]} 15. h5 {[%clk 0:02:42]}  b4 {[%clk 0:01:33]} 16. Ng4 {[%clk 0:02:41]}  bxc3 {[%clk 0:01:31]} 17. bxc3 {[%clk 0:02:41]}  Rab8 {[%clk 0:01:20]} 18. Qd2 {[%clk 0:02:39]}  Ba6 {[%clk 0:01:18]} 19. Rad1 {[%clk 0:02:35]}  Nb6 {[%clk 0:00:44]} 20. h6 {[%clk 0:02:23]}  g6 {[%clk 0:00:43]} 21. Bg5 {[%clk 0:02:23]}  Nd7 {[%clk 0:00:44]} 22. Qf4 {[%clk 0:02:20]}  Rb2 {[%clk 0:00:30]} 23. Bf1 {[%clk 0:02:14]}  Rcb8 {[%clk 0:00:30]} 24. Bxe7 {[%clk 0:02:11]}  Nxe7 {[%clk 0:00:24]} 25. Ng5 {[%clk 0:02:06]}  Nf5 {[%clk 0:00:23]} 26. Nf3 {[%clk 0:01:56]}  Rxa2 {[%clk 0:00:21]} 27. Ne3 {[%clk 0:01:46]}  Rbb2 {[%clk 0:00:20]} 28. Nxf5 {[%clk 0:01:42]}  gxf5 {[%clk 0:00:17]} 29. Ra1 {[%clk 0:01:33]}  Rxf2 {[%clk 0:00:16]} 30. Rxa2 {[%clk 0:01:28]}  Rxa2 {[%clk 0:00:17]} 31. g4 {[%clk 0:01:28]}  Nf8 {[%clk 0:00:13]} 32. gxf5 {[%clk 0:01:13]}  exf5 {[%clk 0:00:14]} 33. Qxf5 {[%clk 0:01:14]}  Bc8 {[%clk 0:00:13]} 34. Qf6 {[%clk 0:01:10]}  Qxf6 {[%clk 0:00:12]} 35. exf6 {[%clk 0:01:11]}  Be6 {[%clk 0:00:11]} 36. Rb1 {[%clk 0:01:07]}  Nd7 {[%clk 0:00:10]} 37. d4 {[%clk 0:01:02]}  c4 {[%clk 0:00:09]} 38. Ne5 {[%clk 0:00:55]}  Kf8 {[%clk 0:00:07]} 39. Bg2 {[%clk 0:00:50]}  Nxf6 {[%clk 0:00:06]} 40. Rb8+ {[%clk 0:00:48]}  Ke7 {[%clk 0:00:07]} 41. Rb7+ {[%clk 0:00:47]}  Kf8 {[%clk 0:00:07]} 42. Rb8+ {[%clk 0:00:45]}  Ke7 {[%clk 0:00:07]} 43. Rb7+ {[%clk 0:00:44]}  Ke8 {[%clk 0:00:07]} 44. Rb8+ {[%clk 0:00:41]}  Ke7 {[%clk 0:00:04]} 1/2-1/2

[Event "January 2 Late 2024"]
[Site "https://www.chess.com"]
[Date "2024.01.02"]
[Round "4"]
[White "Korol, Dimitry"]
[Black "Martin Fuentes, Alberto"]
[Result "0-1"]
[Board "102"]
[TimeControl "180+1"]
[WhiteFideId "14108003"]
[BlackFideId "2292289"]
[WhiteElo "2346"]
[BlackElo "2638"]
[WhiteTeam "UKR"]
[BlackTeam "ESP"]
[WhiteClock "0:00:11"]
[BlackClock "0:00:14"]

1. d4 {[%clk 0:02:59]}  Nf6 {[%clk 0:02:58]} 2. c4 {[%clk 0:02:59]}  c5 {[%clk 0:02:58]} 3. d5 {[%clk 0:02:59]}  b5 {[%clk 0:02:55]} 4. Nd2 {[%clk 0:02:59]}  bxc4 {[%clk 0:02:53]} 5. e4 {[%clk 0:02:57]}  d6 {[%clk 0:02:53]} 6. Bxc4 {[%clk 0:02:56]}  g6 {[%clk 0:02:53]} 7. b3 {[%clk 0:02:55]}  Bg7 {[%clk 0:02:54]} 8. Bb2 {[%clk 0:02:56]}  O-O {[%clk 0:02:54]} 9. Ngf3 {[%clk 0:02:54]}  Ba6 {[%clk 0:02:54]} 10. O-O {[%clk 0:02:52]}  Bxc4 {[%clk 0:02:52]} 11. bxc4 {[%clk 0:02:53]}  Nbd7 {[%clk 0:02:50]} 12. h3 {[%clk 0:02:53]}  Qa5 {[%clk 0:02:49]} 13. Re1 {[%clk 0:02:29]}  Rfb8 {[%clk 0:02:43]} 14. Nb3 {[%clk 0:02:27]}  Qa6 {[%clk 0:02:40]} 15. Qc2 {[%clk 0:02:20]}  Nb6 {[%clk 0:02:39]} 16. Rac1 {[%clk 0:02:19]}  Nbd7 {[%clk 0:02:13]} 17. Ba1 {[%clk 0:02:01]}  Rb4 {[%clk 0:01:04]} 18. e5 {[%clk 0:01:54]}  Ne8 {[%clk 0:01:04]} 19. exd6 {[%clk 0:01:09]}  exd6 {[%clk 0:01:05]} 20. Bxg7 {[%clk 0:01:08]}  Nxg7 {[%clk 0:01:02]} 21. Re7 {[%clk 0:00:31]}  Nb6 {[%clk 0:00:56]} 22. Nbd2 {[%clk 0:00:09]}  Nf5 {[%clk 0:00:55]} 23. Rc7 {[%clk 0:00:09]}  Rc8 {[%clk 0:00:48]} 24. Rxc8+ {[%clk 0:00:07]}  Qxc8 {[%clk 0:00:49]} 25. Re1 {[%clk 0:00:07]}  Qd7 {[%clk 0:00:43]} 26. Ne4 {[%clk 0:00:07]}  Qd8 {[%clk 0:00:37]} 27. Qc3 {[%clk 0:00:06]}  Nd7 {[%clk 0:00:37]} 28. g4 {[%clk 0:00:04]}  Ng7 {[%clk 0:00:28]} 29. Nxd6 {[%clk 0:00:03]}  Rb6 {[%clk 0:00:24]} 30. Ne4 {[%clk 0:00:03]}  h5 {[%clk 0:00:24]} 31. Kg2 {[%clk 0:00:03]}  hxg4 {[%clk 0:00:20]} 32. hxg4 {[%clk 0:00:04]}  f5 {[%clk 0:00:20]} 33. Ng3 {[%clk 0:00:03]}  fxg4 {[%clk 0:00:20]} 34. Ne5 {[%clk 0:00:03]}  Nxe5 {[%clk 0:00:17]} 35. Rxe5 {[%clk 0:00:04]}  Rf6 {[%clk 0:00:15]} 36. Qe3 {[%clk 0:00:04]}  Qf8 {[%clk 0:00:15]} 37. Ne4 {[%clk 0:00:02]}  Rf5 {[%clk 0:00:14]} 38. Rxf5 {[%clk 0:00:02]}  Qxf5 {[%clk 0:00:14]} 39. Qxc5 {[%clk 0:00:03]}  Qxe4+ {[%clk 0:00:13]} 40. Kg1 {[%clk 0:00:03]}  Qe1+ {[%clk 0:00:13]} 41. Kg2 {[%clk 0:00:03]}  Qe4+ {[%clk 0:00:13]} 42. Kg1 {[%clk 0:00:04]}  Nf5 {[%clk 0:00:14]} 43. d6 {[%clk 0:00:03]}  Nh4 {[%clk 0:00:10]} 44. Qd5+ {[%clk 0:00:02]}  Qxd5 {[%clk 0:00:10]} 45. cxd5 {[%clk 0:00:03]}  Kf7 {[%clk 0:00:10]} 46. Kh2 {[%clk 0:00:02]}  Nf5 {[%clk 0:00:08]} 47. d7 {[%clk 0:00:02]}  Ke7 {[%clk 0:00:09]} 48. d6+ {[%clk 0:00:02]}  Kxd7 {[%clk 0:00:09]} 49. Kg2 {[%clk 0:00:01]}  Kxd6 {[%clk 0:00:09]} 50. f3 {[%clk 0:00:02]}  gxf3+ {[%clk 0:00:09]} 51. Kxf3 {[%clk 0:00:03]}  Kc5 {[%clk 0:00:09]} 52. Kg4 {[%clk 0:00:04]}  Ne7 {[%clk 0:00:09]} 53. Kg5 {[%clk 0:00:05]}  Kb4 {[%clk 0:00:09]} 54. Kf6 {[%clk 0:00:06]}  Ka3 {[%clk 0:00:10]} 55. Kxe7 {[%clk 0:00:06]}  g5 {[%clk 0:00:10]} 56. Kf6 {[%clk 0:00:07]}  g4 {[%clk 0:00:11]} 57. Kg5 {[%clk 0:00:07]}  g3 {[%clk 0:00:12]} 58. Kf4 {[%clk 0:00:08]}  g2 {[%clk 0:00:13]} 59. Ke3 {[%clk 0:00:09]}  g1=Q+ {[%clk 0:00:14]} 60. Kd3 {[%clk 0:00:09]}  Qa1 {[%clk 0:00:14]} 61. Kc4 {[%clk 0:00:09]}  Qxa2+ {[%clk 0:00:15]} 62. Kb5 {[%clk 0:00:10]}  Qb3+ {[%clk 0:00:15]} 63. Ka6 {[%clk 0:00:11]}  Qb6# {[%clk 0:00:14]} 0-1

[Event "January 2 Late 2024"]
[Site "https://www.chess.com"]
[Date "2024.01.02"]
[Round "4"]
[White "Zampronha, Wladimir Camilo"]
[Black "Veljanoski, Andrej"]
[Result "0-1"]
[Board "104"]
[TimeControl "180+1"]
[WhiteFideId "2103087"]
[BlackFideId "15003604"]
[WhiteElo "2327"]
[BlackElo "2625"]
[WhiteTeam "BRA"]
[BlackTeam "MKD"]
[WhiteClock "0:00:05"]
[BlackClock "0:01:21"]

1. e4 {[%clk 0:03:00]}  b6 {[%clk 0:02:58]} 2. d4 {[%clk 0:03:00]}  Bb7 {[%clk 0:02:57]} 3. Bd3 {[%clk 0:03:00]}  g6 {[%clk 0:02:56]} 4. Nf3 {[%clk 0:02:59]}  Bg7 {[%clk 0:02:57]} 5. O-O {[%clk 0:02:59]}  d6 {[%clk 0:02:58]} 6. Re1 {[%clk 0:02:56]}  e5 {[%clk 0:02:58]} 7. dxe5 {[%clk 0:02:49]}  dxe5 {[%clk 0:02:58]} 8. Bb5+ {[%clk 0:02:49]}  c6 {[%clk 0:02:58]} 9. Qxd8+ {[%clk 0:02:48]}  Kxd8 {[%clk 0:02:59]} 10. Bc4 {[%clk 0:02:48]}  Ke7 {[%clk 0:02:57]} 11. Ng5 {[%clk 0:02:46]}  Nh6 {[%clk 0:02:56]} 12. Rd1 {[%clk 0:02:41]}  Na6 {[%clk 0:02:51]} 13. Nxf7 {[%clk 0:01:45]}  Nxf7 {[%clk 0:02:50]} 14. Bxf7 {[%clk 0:01:45]}  Rhd8 {[%clk 0:02:46]} 15. Bg5+ {[%clk 0:01:34]}  Bf6 {[%clk 0:02:45]} 16. Bxf6+ {[%clk 0:01:28]}  Kxf6 {[%clk 0:02:46]} 17. Rxd8 {[%clk 0:01:23]}  Rxd8 {[%clk 0:02:47]} 18. Bc4 {[%clk 0:01:22]}  Nb4 {[%clk 0:02:44]} 19. Na3 {[%clk 0:01:20]}  b5 {[%clk 0:02:29]} 20. Bd3 {[%clk 0:01:18]}  Nxd3 {[%clk 0:02:29]} 21. Rd1 {[%clk 0:01:19]}  b4 {[%clk 0:02:06]} 22. Nc4 {[%clk 0:01:14]}  Ba6 {[%clk 0:02:05]} 23. b3 {[%clk 0:01:14]}  Bxc4 {[%clk 0:01:53]} 24. bxc4 {[%clk 0:01:13]}  a5 {[%clk 0:01:53]} 25. cxd3 {[%clk 0:01:03]}  a4 {[%clk 0:01:53]} 26. Kf1 {[%clk 0:01:02]}  Ke6 {[%clk 0:01:52]} 27. Ke2 {[%clk 0:01:02]}  Kd6 {[%clk 0:01:52]} 28. Ke3 {[%clk 0:01:00]}  Kc5 {[%clk 0:01:52]} 29. g3 {[%clk 0:00:54]}  g5 {[%clk 0:01:51]} 30. f4 {[%clk 0:00:54]}  gxf4+ {[%clk 0:01:51]} 31. gxf4 {[%clk 0:00:55]}  exf4+ {[%clk 0:01:52]} 32. Kxf4 {[%clk 0:00:56]}  Kd4 {[%clk 0:01:51]} 33. Kf5 {[%clk 0:00:48]}  b3 {[%clk 0:01:51]} 34. axb3 {[%clk 0:00:47]}  axb3 {[%clk 0:01:52]} 35. Re1 {[%clk 0:00:46]}  b2 {[%clk 0:01:50]} 36. e5 {[%clk 0:00:46]}  Kxd3 {[%clk 0:01:47]} 37. e6 {[%clk 0:00:46]}  Kxc4 {[%clk 0:01:40]} 38. e7 {[%clk 0:00:46]}  Re8 {[%clk 0:01:40]} 39. Kf6 {[%clk 0:00:32]}  c5 {[%clk 0:01:33]} 40. Kf7 {[%clk 0:00:31]}  Rxe7+ {[%clk 0:01:23]} 41. Kxe7 {[%clk 0:00:32]}  Kb3 {[%clk 0:01:24]} 42. Re5 {[%clk 0:00:12]}  c4 {[%clk 0:01:22]} 43. Rb5+ {[%clk 0:00:05]}  Kc2 {[%clk 0:01:21]} 0-1